bitfinex-derivatives/quotes_BNBF0:USTF0_20250630
["timestamp","ask_amount","ask_price","bid_price","bid_amount"]
[1751285313885,3.8085453,655.58,654.36,1.1195562]
[1751285314082,0.26569043,655.6,654.37,1.1195562]
[1751285314295,0.26569043,655.6,654.38,1.1195562]
[1751285314481,0.26569043,655.6,654.39,1.1195562]
[1751285314682,4.07423573,655.6,654.4,1.1195562]
[1751285314885,4.07423573,655.6,654.41,1.1195562]
[1751285315081,4.07423573,655.6,654.35,1.1416399]
[1751285315082,3.8085453,655.58,654.42,1.1195562]
[1751285315286,3.8085453,655.58,654.43,1.1195562]
[1751285315486,3.8085453,655.58,654.44,1.1195562]
[1751285315684,3.8085453,655.59,654.45,1.1195562]
[1751285315886,3.8085453,655.59,654.31,1.1416399]
[1751285315887,3.8085453,655.59,654.46,1.1195562]
[1751285316183,0.26569043,655.6,654.47,1.1195562]
[1751285316387,0.26569043,655.6,654.48,1.1195562]
[1751285316683,0.26569043,655.6,654.49,1.1195562]
[1751285316987,0.26569043,655.6,654.5,1.1195562]
[1751285317288,0.26569043,655.6,654.51,1.1195562]
[1751285317487,0.26569043,655.6,654.52,1.1195562]
[1751285317687,0.26569043,655.6,654.53,1.1195562]
[1751285317883,0.26569043,655.6,654.54,1.1195562]
[1751285318088,0.26569043,655.6,654.55,1.1195562]
[1751285318284,0.26569043,655.6,654.32,1.1416399]
[1751285318285,0.26569043,655.6,654.56,1.1195562]
[1751285318488,0.26569043,655.6,654.57,1.1195562]
[1751285318684,0.26569043,655.6,654.58,1.1195562]
[1751285318888,0.26569043,655.6,654.59,1.1195562]
[1751285319184,0.26569043,655.6,654.32,1.1416399]
[1751285319385,0.26569043,655.6,654.33,1.1201078]
[1751285319584,0.26569043,655.6,654.34,1.1201078]
[1751285319782,0.26569043,655.6,654.35,1.1201078]
[1751285319987,0.26569043,655.6,654.36,1.1201078]
[1751285320184,0.26569043,655.6,654.37,1.1201078]
[1751285320384,0.26569043,655.6,654.38,1.1201078]
[1751285320586,0.26569043,655.6,654.39,1.1201078]
[1751285320783,0.26569043,655.6,654.4,1.1201078]
[1751285320982,0.26569043,655.6,654.41,1.1201078]
[1751285321183,0.26569043,655.6,654.42,1.1201078]
[1751285321385,0.26569043,655.6,654.43,1.1201078]
[1751285321587,0.26569043,655.6,654.44,1.1201078]
[1751285321786,0.26569043,655.6,654.45,1.1201078]
[1751285321984,0.26569043,655.6,654.46,1.1201078]
[1751285322189,0.26569043,655.6,654.47,1.1201078]
[1751285322484,0.26569043,655.6,654.48,1.1201078]
[1751285322689,0.26569043,655.6,654.49,1.1201078]
[1751285322889,0.26569043,655.6,654.5,1.1201078]
[1751285323089,0.26569043,655.6,654.51,1.1201078]
[1751285323291,0.26569043,655.6,654.52,1.1201078]
[1751285323489,0.26569043,655.6,654.53,1.1201078]
[1751285323791,0.26569043,655.6,654.54,1.1201078]
[1751285324090,0.26569043,655.6,654.55,1.1201078]
[1751285324291,0.26569043,655.6,654.56,1.1201078]
[1751285324592,0.26569043,655.6,654.57,1.1201078]
[1751285324788,0.26569043,655.6,654.58,1.1201078]
[1751285325088,0.26569043,655.6,654.59,1.1201078]
[1751285325292,0.26569043,655.6,654.6,1.1201078]
[1751285325490,0.26569043,655.6,654.61,1.1201078]
[1751285325691,0.26569043,655.6,654.38,1.1416399]
[1751285325890,0.26569043,655.6,654.39,1.1209201]
[1751285326094,0.26569043,655.6,654.4,1.1209201]
[1751285326291,0.26569043,655.6,654.41,1.1209201]
[1751285326491,0.26569043,655.6,654.42,1.1209201]
[1751285326692,0.26569043,655.6,654.43,1.1209201]
[1751285326895,0.26569043,655.6,654.44,1.1209201]
[1751285327092,0.26569043,655.6,654.45,1.1209201]
[1751285327295,0.26569043,655.6,654.46,1.1209201]
[1751285327590,0.26569043,655.6,654.47,1.1209201]
[1751285327794,0.26569043,655.6,654.48,1.1209201]
[1751285327990,0.26569043,655.6,654.49,1.1209201]
[1751285328191,0.26569043,655.6,654.5,1.1209201]
[1751285328392,0.26569043,655.6,654.51,1.1209201]
[1751285328592,4.07423573,655.6,654.52,1.1209201]
[1751285328792,4.07423573,655.6,654.53,1.1209201]
[1751285328995,3.8085453,655.57,654.54,1.1209201]
[1751285329294,3.8085453,655.57,654.55,1.1209201]
[1751285329492,3.8085453,655.57,654.56,1.1209201]
[1751285329694,3.8085453,655.57,654.57,1.1209201]
[1751285329996,3.8085453,655.57,654.58,1.1209201]
[1751285330292,3.8085453,655.57,654.59,1.1209201]
[1751285330596,3.8085453,655.55,654.6,1.1209201]
[1751285330795,3.8085453,655.55,654.61,1.1209201]
[1751285330993,3.8085453,655.55,654.62,1.1209201]
[1751285331294,3.8085453,655.55,654.63,1.1209201]
[1751285331493,3.8085453,655.55,654.64,1.1209201]
[1751285331692,3.8085453,655.55,654.43,1.1416399]
[1751285331693,3.8085453,655.55,654.65,1.1209201]
[1751285331893,3.8085453,655.55,654.66,1.1209201]
[1751285332096,3.8085453,655.55,654.43,1.1416399]
[1751285332396,3.8085453,655.55,654.44,2.2641679]
[1751285332591,3.8085453,655.53,654.45,1.122528]
[1751285332798,3.8085453,655.53,654.46,1.122528]
[1751285333091,3.8085453,655.53,654.47,1.122528]
[1751285333292,3.8085453,655.53,654.48,1.122528]
[1751285333493,3.8085453,655.53,654.49,1.122528]
[1751285333793,3.8085453,655.54,654.5,1.122528]
[1751285333997,3.8085453,655.54,654.51,1.122528]
[1751285334296,3.8085453,655.55,654.52,1.122528]
[1751285334496,3.8085453,655.55,654.53,1.122528]
[1751285334796,3.8085453,655.55,654.54,1.122528]
[1751285334995,3.8085453,655.55,654.55,1.122528]
[1751285335196,3.8085453,655.54,654.56,1.122528]
[1751285335496,3.8085453,655.54,654.57,1.122528]
[1751285335698,3.8085453,655.5,654.58,1.122528]
[1751285335991,3.8085453,655.5,654.59,1.122528]
[1751285336196,3.8085453,655.47,654.6,1.122528]
[1751285336394,3.8085453,655.47,654.61,1.122528]
[1751285336595,3.8085453,655.47,654.62,1.122528]
[1751285336794,3.8085453,655.47,654.63,1.122528]
[1751285336991,3.8085453,655.47,654.64,1.122528]
[1751285337195,3.8085453,655.47,654.65,1.122528]
[1751285337396,3.8085453,655.47,654.66,1.122528]
[1751285337594,3.8085453,655.47,654.45,3.9096399]
[1751285337795,3.8085453,655.47,654.46,1.1225667]
[1751285338096,3.8085453,655.47,654.47,1.1225667]
[1751285338295,3.8085453,655.45,654.48,1.1225667]
[1751285338499,3.8085453,655.45,654.49,1.1225667]
[1751285338700,3.8085453,655.45,654.5,1.1225667]
[1751285338896,3.8085453,655.45,654.51,1.1225667]
[1751285339099,3.8085453,655.45,654.52,1.1225667]
[1751285339297,3.8085453,655.45,654.53,1.1225667]
[1751285339600,3.8085453,655.45,654.54,1.1225667]
[1751285339802,3.8085453,655.42,654.55,1.1225667]
[1751285340002,3.8085453,655.42,654.56,1.1225667]
[1751285340203,3.8085453,655.42,654.57,1.1225667]
[1751285340400,3.8085453,655.42,654.58,1.1225667]
[1751285340703,3.8085453,655.42,654.59,1.1225667]
[1751285340902,3.8085453,655.42,654.6,1.1225667]
[1751285341198,3.8085453,655.42,654.47,1.1416399]
[1751285341199,3.8085453,655.42,654.61,1.1225667]
[1751285341399,3.8085453,655.42,654.62,1.1225667]
[1751285341602,3.8085453,655.42,654.63,1.1225667]
[1751285341901,3.8085453,655.42,654.64,1.1225667]
[1751285342099,3.8085453,655.42,654.65,1.1225667]
[1751285342299,3.8085453,655.42,654.66,1.1225667]
[1751285342504,3.8085453,655.42,654.47,1.1416399]
[1751285342705,3.8085453,655.42,654.48,1.1226211]
[1751285343001,3.8085453,655.42,654.49,1.1226211]
[1751285343200,3.8085453,655.42,654.5,1.1226211]
[1751285343400,3.8085453,655.42,654.51,1.1226211]
[1751285343702,3.8085453,655.42,654.52,1.1226211]
[1751285343902,3.8085453,655.43,654.53,1.1226211]
[1751285344099,3.8085453,655.43,654.54,1.1226211]
[1751285344301,3.8085453,655.43,654.47,1.1416399]
[1751285344302,3.8085453,655.41,654.55,1.1226211]
[1751285344505,3.8085453,655.41,654.56,1.1226211]
[1751285344800,3.8085453,655.41,654.57,1.1226211]
[1751285345005,3.8085453,655.41,654.58,1.1226211]
[1751285345206,3.8085453,655.41,654.59,1.1226211]
[1751285345403,3.8085453,655.41,654.6,1.1226211]
[1751285345602,3.8085453,655.41,654.61,1.1226211]
[1751285345805,3.8085453,655.41,654.62,1.1226211]
[1751285346103,3.8085453,655.41,654.63,1.1226211]
[1751285346307,3.8085453,655.41,654.64,1.1226211]
[1751285346504,3.8085453,655.41,654.65,1.1226211]
[1751285346705,3.8085453,655.41,654.66,1.1226211]
[1751285346908,3.8085453,655.41,654.47,1.1416399]
[1751285347209,3.8085453,655.41,654.48,1.1226262]
[1751285347504,3.8085453,655.41,654.49,1.1226262]
[1751285347702,3.8085453,655.41,654.5,1.1226262]
[1751285347905,3.8085453,655.43,654.51,1.1226262]
[1751285348104,3.8085453,655.43,654.52,1.1226262]
[1751285348304,3.8085453,655.43,654.53,1.1226262]
[1751285348504,3.8085453,655.45,654.54,1.1226262]
[1751285348806,3.8085453,655.45,654.55,1.1226262]
[1751285349004,3.8085453,655.45,654.56,1.1226262]
[1751285349205,3.8085453,655.45,654.57,1.1226262]
[1751285349408,3.8085453,655.45,654.58,1.1226262]
[1751285349706,3.8085453,655.45,654.59,1.1226262]
[1751285349905,3.8085453,655.53,654.6,1.1226262]
[1751285350204,3.8085453,655.53,654.45,2.768]
[1751285350205,3.8085453,655.53,654.61,1.1226262]
[1751285350404,3.8085453,655.53,654.62,1.1226262]
[1751285350704,3.8085453,655.53,654.63,1.1226262]
[1751285350908,3.8085453,655.53,654.64,1.1226262]
[1751285351105,3.8085453,655.53,654.65,1.1226262]
[1751285351406,3.8085453,655.53,654.66,1.1226262]
[1751285351607,3.8085453,655.53,654.45,2.768]
[1751285351909,3.8085453,655.53,654.46,1.1229749]
[1751285352103,3.8085453,655.53,654.47,1.1229749]
[1751285352306,3.8085453,655.53,654.48,1.1229749]
[1751285352505,3.8085453,655.53,654.49,1.1229749]
[1751285352714,3.8085453,655.53,654.5,1.1229749]
[1751285353010,0.26569043,655.6,654.51,1.1229749]
[1751285353210,0.26569043,655.6,654.52,1.1229749]
[1751285353409,0.26569043,655.6,654.53,1.1229749]
[1751285353709,0.26569043,655.6,654.54,1.1229749]
[1751285353914,0.26569043,655.6,654.55,1.1229749]
[1751285354114,0.26569043,655.6,654.56,1.1229749]
[1751285354414,0.26569043,655.6,654.57,1.1229749]
[1751285354615,0.26569043,655.6,654.58,1.1229749]
[1751285354814,0.26569043,655.6,654.59,1.1229749]
[1751285355016,0.26569043,655.6,654.6,1.1229749]
[1751285355216,0.26569043,655.6,654.61,1.1229749]
[1751285355417,0.26569043,655.6,654.62,1.1229749]
[1751285355614,0.26569043,655.6,654.63,1.1229749]
[1751285355814,0.26569043,655.6,654.64,1.1229749]
[1751285356015,0.26569043,655.6,654.65,1.1229749]
[1751285356315,0.26569043,655.6,654.66,1.1229749]
[1751285356514,0.26569043,655.6,654.67,1.1229749]
[1751285356714,0.26569043,655.6,654.68,1.1229749]
[1751285356918,0.26569043,655.6,654.69,1.1229749]
[1751285357118,0.26569043,655.6,654.7,1.1229749]
[1751285357317,0.26569043,655.6,654.45,2.768]
[1751285357516,0.26569043,655.6,654.46,1.1220955]
[1751285357717,0.26569043,655.6,654.47,1.1220955]
[1751285357921,0.26569043,655.6,654.48,1.1220955]
[1751285358121,0.26569043,655.6,654.49,1.1220955]
[1751285358323,0.26569043,655.6,654.5,1.1220955]
[1751285358621,0.26569043,655.6,654.51,1.1220955]
[1751285358825,0.26569043,655.6,654.52,1.1220955]
[1751285359025,0.26569043,655.6,654.53,1.1220955]
[1751285359225,0.26569043,655.6,654.54,1.1220955]
[1751285359424,0.26569043,655.6,654.55,1.1220955]
[1751285359627,0.26569043,655.6,654.56,1.1220955]
[1751285359826,0.26569043,655.6,654.57,1.1220955]
[1751285360027,0.26569043,655.6,654.58,1.1220955]
[1751285360225,0.26569043,655.6,654.59,1.1220955]
[1751285360424,0.26569043,655.6,654.6,1.1220955]
[1751285360726,0.26569043,655.6,654.61,1.1220955]
[1751285360927,0.26569043,655.6,654.62,1.1220955]
[1751285361127,0.26569043,655.6,654.63,1.1220955]
[1751285361327,0.26569043,655.6,654.64,1.1220955]
[1751285361524,0.26569043,655.6,654.65,1.1220955]
[1751285361727,0.26569043,655.6,654.66,1.1220955]
[1751285361928,0.26569043,655.6,654.67,1.1220955]
[1751285362128,0.26569043,655.6,654.68,1.1220955]
[1751285362326,0.26569043,655.6,654.45,2.768]
[1751285362524,0.26569043,655.6,654.46,1.1218541]
[1751285362725,0.26569043,655.6,654.47,1.1218541]
[1751285362929,0.26569043,655.6,654.48,1.1218541]
[1751285363130,0.26569043,655.6,654.49,1.1218541]
[1751285363330,0.26569043,655.6,654.5,1.1218541]
[1751285363528,0.26569043,655.6,654.51,1.1218541]
[1751285363727,0.26569043,655.6,654.52,1.1218541]
[1751285363933,0.26569043,655.6,654.53,1.1218541]
[1751285364228,0.26569043,655.6,654.54,1.1218541]
[1751285364529,0.26569043,655.6,654.55,1.1218541]
[1751285364731,0.26569043,655.6,654.56,1.1218541]
[1751285364933,0.26569043,655.6,654.57,1.1218541]
[1751285365131,0.26569043,655.6,654.58,1.1218541]
[1751285365335,0.26569043,655.6,654.59,1.1218541]
[1751285365532,0.26569043,655.6,654.45,2.768]
[1751285365533,0.26569043,655.6,654.6,1.1218541]
[1751285365737,0.26569043,655.6,654.61,1.1218541]
[1751285366035,0.26569043,655.6,654.62,1.1218541]
[1751285366234,0.26569043,655.6,654.63,1.1218541]
[1751285366533,0.26569043,655.6,654.64,1.1218541]
[1751285366833,0.26569043,655.6,654.65,1.1218541]
[1751285367037,0.26569043,655.6,654.66,1.1218541]
[1751285367236,0.26569043,655.6,654.67,1.1218541]
[1751285367439,0.26569043,655.6,654.68,1.1218541]
[1751285367640,0.26569043,655.6,654.45,2.768]
[1751285367834,0.26569043,655.6,654.46,1.1217208]
[1751285368036,0.26569043,655.6,654.47,1.1217208]
[1751285368239,0.26569043,655.6,654.48,1.1217208]
[1751285368443,0.26569043,655.6,654.45,2.768]
[1751285368444,0.26569043,655.6,654.49,1.1217208]
[1751285368638,0.26569043,655.6,654.5,1.1217208]
[1751285368841,0.26569043,655.6,654.51,1.1217208]
[1751285369140,0.26569043,655.6,654.52,1.1217208]
[1751285369344,0.26569043,655.6,654.53,1.1217208]
[1751285369639,0.26569043,655.6,654.54,1.1217208]
[1751285369843,0.26569043,655.6,654.55,1.1217208]
[1751285370044,0.26569043,655.6,654.56,1.1217208]
[1751285370240,0.26569043,655.6,654.57,1.1217208]
[1751285370542,3.8085453,655.53,654.58,1.1217208]
[1751285370842,3.8085453,655.53,654.59,1.1217208]
[1751285371040,3.8085453,655.52,654.6,1.1217208]
[1751285371240,3.8085453,655.52,654.61,1.1217208]
[1751285371440,3.8085453,655.52,654.62,1.1217208]
[1751285371640,3.8085453,655.52,654.63,1.1217208]
[1751285371843,3.8085453,655.52,654.64,3.8557208]
[1751285372045,3.8085453,655.52,654.65,1.1217208]
[1751285372241,3.8085453,655.52,654.66,1.1217208]
[1751285372443,3.8085453,655.52,654.64,2.734]
[1751285372744,3.8085453,655.52,654.65,1.1145903]
[1751285372943,3.8085453,655.52,654.66,1.1145903]
[1751285373249,3.8085453,655.51,654.64,2.734]
[1751285373453,3.8085453,655.51,654.65,1.1145847]
[1751285373751,3.8085453,655.52,654.66,1.1145847]
[1751285373956,3.8085453,655.52,654.64,2.734]
[1751285374150,3.8085453,655.52,654.65,1.1145824]
[1751285374352,3.8085453,655.52,654.66,1.1145824]
[1751285374649,3.8085453,655.52,654.64,2.734]
[1751285374849,3.8085453,655.52,654.65,1.1145757]
[1751285375053,3.8085453,655.52,654.66,1.1145757]
[1751285375250,3.8085453,655.52,654.64,2.734]
[1751285375548,3.8085453,655.53,654.65,1.1145703]
[1751285375753,3.8085453,655.53,654.66,1.1145703]
[1751285376054,3.8085453,655.53,654.64,2.734]
[1751285376352,3.8085453,655.53,654.65,1.1145703]
[1751285376549,3.8085453,655.53,654.66,1.1145703]
[1751285376748,0.26569043,655.6,654.64,2.734]
[1751285376950,0.26569043,655.6,654.65,1.1145662]
[1751285377148,0.26569043,655.6,654.66,1.1145662]
[1751285377348,0.26569043,655.6,654.64,2.734]
[1751285377548,0.26569043,655.6,654.65,1.1145627]
[1751285377750,3.8085453,655.52,654.66,1.1145627]
[1751285377949,3.8085453,655.52,654.64,2.734]
[1751285378253,3.8085453,655.52,654.65,1.1145632]
[1751285378449,3.8085453,655.52,654.66,1.1145632]
[1751285378653,3.8085453,655.52,654.64,2.734]
[1751285378852,3.8085453,655.52,654.65,1.1145609]
[1751285379051,3.8085453,655.52,654.66,1.1145609]
[1751285379250,3.8085453,655.52,654.64,2.734]
[1751285380650,3.8085453,655.54,654.64,2.734]
[1751285382755,3.8085453,655.55,654.64,2.734]
[1751285386357,3.8085453,655.56,654.64,2.734]
[1751285387858,3.8085453,655.53,654.64,2.734]
[1751285389860,3.8085453,655.5,654.64,2.734]
[1751285390461,3.8085453,655.48,654.64,2.734]
[1751285390858,3.8085453,655.47,654.64,2.734]
[1751285393664,3.8085453,655.49,654.64,2.734]
[1751285394061,3.8085453,655.5,654.64,2.734]
[1751285395064,3.8085453,655.52,654.64,2.734]
[1751285395566,3.8085453,655.51,654.64,2.734]
[1751285396067,3.8085453,655.52,654.64,2.734]
[1751285398267,3.8085453,655.49,654.64,2.734]
[1751285398768,3.8085453,655.55,654.64,2.734]
[1751285399763,3.8085453,655.56,654.64,2.734]
[1751285400169,3.8085453,655.57,654.64,2.734]
[1751285400663,3.8085453,655.58,654.64,2.734]
[1751285402169,3.8085453,655.59,654.64,2.734]
[1751285404670,0.26569043,655.6,654.64,2.734]
[1751285418586,3.8085453,655.59,654.64,2.734]
[1751285420993,3.8085453,655.59,654.21,1.1416399]
[1751285421291,0.26569043,655.6,654.23,1.1416399]
[1751285421488,0.26569043,655.6,654.24,1.1175878]
[1751285421688,4.07423573,655.6,654.25,1.1175878]
[1751285421892,4.07423573,655.6,654.26,1.1175878]
[1751285422091,4.07423573,655.6,654.27,1.1175878]
[1751285422290,4.07423573,655.6,654.28,1.1175878]
[1751285422492,4.07423573,655.6,654.29,1.1175878]
[1751285422692,0.26569043,655.6,654.3,1.1175878]
[1751285422889,0.26569043,655.6,654.31,1.1175878]
[1751285423188,0.26569043,655.6,654.32,1.1175878]
[1751285423388,0.26569043,655.6,654.33,1.1175878]
[1751285423591,0.26569043,655.6,654.34,1.1175878]
[1751285423790,0.26569043,655.6,654.35,1.1175878]
[1751285423988,0.26569043,655.6,654.36,1.1175878]
[1751285424193,0.26569043,655.6,654.37,1.1175878]
[1751285424392,0.26569043,655.6,654.38,1.1175878]
[1751285424689,0.26569043,655.6,654.39,1.1175878]
[1751285424888,0.26569043,655.6,654.4,1.1175878]
[1751285425191,0.26569043,655.6,654.41,1.1175878]
[1751285425389,0.26569043,655.6,654.42,1.1175878]
[1751285425588,0.26569043,655.6,654.43,1.1175878]
[1751285425789,0.26569043,655.6,654.44,1.1175878]
[1751285426089,0.26569043,655.6,654.4,2.694]
[1751285426090,0.26569043,655.6,654.45,1.1175878]
[1751285426392,0.26569043,655.6,654.46,1.1175878]
[1751285426590,0.26569043,655.6,654.47,1.1175878]
[1751285426788,0.26569043,655.6,654.48,1.1175878]
[1751285426990,0.26569043,655.6,654.4,2.694]
[1751285427192,0.26569043,655.6,654.41,1.1176849]
[1751285427390,0.26569043,655.6,654.42,1.1176849]
[1751285427595,0.26569043,655.6,654.43,1.1176849]
[1751285427796,0.26569043,655.6,654.44,1.1176849]
[1751285427993,0.26569043,655.6,654.45,1.1176849]
[1751285428193,0.26569043,655.6,654.46,1.1176849]
[1751285428397,0.26569043,655.6,654.47,1.1176849]
[1751285428595,0.26569043,655.6,654.48,1.1176849]
[1751285428801,0.26569043,655.6,654.4,2.694]
[1751285429096,0.26569043,655.6,654.41,1.1177598]
[1751285429299,0.26569043,655.6,654.42,1.1177598]
[1751285429499,0.26569043,655.6,654.43,1.1177598]
[1751285429699,0.26569043,655.6,654.44,1.1177598]
[1751285429898,0.26569043,655.6,654.45,1.1177598]
[1751285430098,0.26569043,655.6,654.46,1.1177598]
[1751285430294,0.26569043,655.6,654.47,1.1177598]
[1751285430495,0.26569043,655.6,654.48,1.1177598]
[1751285430796,0.26569043,655.6,654.4,2.694]
[1751285430995,0.26569043,655.6,654.41,1.1178448]
[1751285431199,0.26569043,655.6,654.42,1.1178448]
[1751285431399,0.26569043,655.6,654.43,1.1178448]
[1751285431598,0.26569043,655.6,654.44,1.1178448]
[1751285431799,0.26569043,655.6,654.45,1.1178448]
[1751285432099,0.26569043,655.6,654.46,1.1178448]
[1751285432296,0.26569043,655.6,654.47,1.1178448]
[1751285432497,4.07423573,655.6,654.48,1.1178448]
[1751285432696,4.07423573,655.6,654.4,2.694]
[1751285432896,4.07423573,655.6,654.41,1.1179545]
[1751285433095,4.07423573,655.6,654.42,1.1179545]
[1751285433395,4.07423573,655.6,654.4,2.694]
[1751285433396,4.07423573,655.6,654.43,1.1179545]
[1751285433594,4.07423573,655.6,654.44,1.1179545]
[1751285433896,4.07423573,655.6,654.45,1.1179545]
[1751285434098,4.07423573,655.6,654.46,1.1179545]
[1751285434299,4.07423573,655.6,654.47,1.1179545]
[1751285434496,4.07423573,655.6,654.48,1.1179545]
[1751285434698,3.8085453,655.59,654.49,1.1179545]
[1751285434896,3.8085453,655.59,654.4,2.694]
[1751285435100,3.8085453,655.59,654.41,1.11809151]
[1751285435301,3.8085453,655.59,654.42,1.11809151]
[1751285435496,3.8085453,655.59,654.43,1.11809151]
[1751285435798,0.26569043,655.6,654.44,1.11809151]
[1751285435997,0.26569043,655.6,654.45,1.11809151]
[1751285436300,0.26569043,655.6,654.46,1.11809151]
[1751285436498,0.26569043,655.6,654.47,1.11809151]
[1751285436698,0.26569043,655.6,654.48,1.11809151]
[1751285436897,0.26569043,655.6,654.49,1.11809151]
[1751285437196,0.26569043,655.6,654.4,2.694]
[1751285437398,0.26569043,655.6,654.41,1.11827008]
[1751285437597,0.26569043,655.6,654.4,2.694]
[1751285437598,0.26569043,655.6,654.42,1.11827008]
[1751285437797,0.26569043,655.6,654.43,1.11827008]
[1751285438097,0.26569043,655.6,654.44,1.11827008]
[1751285438396,0.26569043,655.6,654.45,1.11827008]
[1751285438601,0.26569043,655.6,654.46,1.11827008]
[1751285438895,0.26569043,655.6,654.47,1.11827008]
[1751285439101,0.26569043,655.6,654.48,1.11827008]
[1751285439401,0.26569043,655.6,654.49,1.11827008]
[1751285439702,0.26569043,655.6,654.5,1.11827008]
[1751285439998,0.26569043,655.6,654.4,2.694]
[1751285440298,0.26569043,655.6,654.41,1.1185072]
[1751285440501,0.26569043,655.6,654.42,1.1185072]
[1751285440701,0.26569043,655.6,654.43,1.1185072]
[1751285440901,0.26569043,655.6,654.44,1.1185072]
[1751285441101,0.26569043,655.6,654.45,1.1185072]
[1751285441301,0.26569043,655.6,654.46,1.1185072]
[1751285441496,0.26569043,655.6,654.47,1.1185072]
[1751285441697,0.26569043,655.6,654.48,1.1185072]
[1751285441901,0.26569043,655.6,654.49,1.1185072]
[1751285442098,0.26569043,655.6,654.5,1.1185072]
[1751285442299,3.8085453,655.86,654.51,1.1186983]
[1751285442502,0.26569956,655.33,654.4,2.694]
[1751285442797,3.8085453,655.86,654.41,1.1186983]
[1751285442998,0.26570869,655.1,654.42,1.1186983]
[1751285443202,3.8085453,655.86,654.43,1.1186983]
[1751285443400,0.26570666,655.02,654.44,1.1186983]
[1751285443703,3.8085453,655.86,654.45,1.1186983]
[1751285443902,3.8085453,655.86,654.46,1.1186983]
[1751285444099,0.26570463,655.02,654.47,1.1186983]
[1751285444303,3.8085453,655.86,654.48,1.1186983]
[1751285444599,0.2657026,655.52,654.49,1.1186983]
[1751285444803,0.2657026,655.52,654.5,1.1186983]
[1751285445000,0.2657026,655.52,654.51,1.1186983]
[1751285445301,0.2657026,655.52,654.4,2.694]
[1751285445501,0.2657026,655.52,654.41,1.1188241]
[1751285445701,0.2657026,655.52,654.42,1.1188241]
[1751285446003,0.2657026,655.52,654.43,1.1188241]
[1751285446203,0.2657026,655.52,654.44,1.1188241]
[1751285446403,0.2657026,655.52,654.45,1.1188241]
[1751285446601,0.2657026,655.52,654.46,1.1188241]
[1751285446904,0.2657026,655.52,654.47,1.1188241]
[1751285447102,0.2657026,655.52,654.48,1.1188241]
[1751285447300,0.2657026,655.52,654.49,1.1188241]
[1751285447504,0.2657026,655.52,654.5,1.1188241]
[1751285447805,0.2657026,655.52,654.51,1.1188241]
[1751285448005,0.2657026,655.52,654.4,2.694]
[1751285448203,0.2657026,655.52,654.41,1.1190259]
[1751285448402,0.2657026,655.52,654.42,1.1190259]
[1751285448601,0.2657026,655.52,654.43,1.1190259]
[1751285448806,0.2657026,655.52,654.44,1.1190259]
[1751285449106,0.2657026,655.52,654.45,1.1190259]
[1751285449307,0.2657026,655.52,654.46,1.1190259]
[1751285449602,0.2657026,655.52,654.47,1.1190259]
[1751285449803,0.2657026,655.52,654.48,1.1190259]
[1751285450106,0.2657026,655.52,654.49,1.1190259]
[1751285450307,0.2657026,655.52,654.5,1.1190259]
[1751285450506,0.2657026,655.52,654.51,1.1190259]
[1751285450701,0.2657026,655.52,654.52,1.1190259]
[1751285450905,3.8085453,655.5,654.4,2.694]
[1751285451202,3.8085453,655.5,654.41,1.119311]
[1751285451406,3.8085453,655.47,654.42,1.119311]
[1751285451705,3.8085453,655.47,654.43,1.119311]
[1751285451901,3.8085453,655.46,654.44,1.119311]
[1751285452105,3.8085453,655.46,654.45,1.119311]
[1751285452306,3.8085453,655.46,654.46,1.119311]
[1751285452505,3.8085453,655.46,654.47,1.119311]
[1751285452703,3.8085453,655.46,654.48,1.119311]
[1751285453002,3.8085453,655.48,654.49,1.119311]
[1751285453208,3.8085453,655.48,654.4,2.694]
[1751285453407,3.8085453,655.48,654.41,1.1196409]
[1751285453601,3.8085453,655.48,654.42,1.1196409]
[1751285453807,3.8085453,655.48,654.43,1.1196409]
[1751285454006,3.8085453,655.48,654.44,1.1196409]
[1751285454207,3.8085453,655.48,654.45,1.1196409]
[1751285454504,0.2657026,655.52,654.46,1.1196409]
[1751285454707,0.2657026,655.52,654.47,1.1196409]
[1751285455002,0.2657026,655.52,654.48,1.1196409]
[1751285455207,0.2657026,655.52,654.49,1.1196409]
[1751285455407,0.2657026,655.52,654.5,1.1196409]
[1751285455604,0.2657026,655.52,654.51,1.1196409]
[1751285455801,0.2657026,655.52,654.4,2.694]
[1751285456106,0.2657026,655.52,654.41,1.1199656]
[1751285456302,0.2657026,655.52,654.42,1.1199656]
[1751285456506,0.2657026,655.52,654.43,1.1199656]
[1751285456704,0.2657026,655.52,654.44,1.1199656]
[1751285456904,0.2657026,655.52,654.45,1.1199656]
[1751285457207,0.2657026,655.52,654.46,1.1199656]
[1751285457505,0.2657026,655.52,654.47,1.1199656]
[1751285457704,0.2657026,655.52,654.48,1.1199656]
[1751285458006,0.2657026,655.52,654.49,1.1199656]
[1751285458204,0.2657026,655.52,654.5,1.1199656]
[1751285458507,0.2657026,655.52,654.51,1.1199656]
[1751285458706,0.2657026,655.52,654.4,2.694]
[1751285458707,0.2657026,655.52,654.52,1.1199656]
[1751285458906,0.2657026,655.52,654.53,1.1199656]
[1751285459103,0.2657026,655.52,654.4,2.694]